bitfinex/quotes_SOLUSD_20240604
["timestamp","ask_amount","ask_price","bid_price","bid_amount"]
[1717505975582,2.2309,165.85,165.83,7.0]
[1717505975878,2.2309,165.85,165.84,7.0]
[1717505982897,2.2308,165.86,165.84,7.0]
[1717505983102,2.2308,165.86,165.85,7.0]
[1717505986595,2.2306,165.88,165.85,7.0]
[1717505986804,2.2306,165.88,165.87,7.0]
[1717505987207,2.2307,165.87,165.86,7.0]
[1717505987409,2.2307,165.87,165.82,2.2312]
[1717505987410,2.2307,165.87,165.82,8.8282]
[1717505987595,2.2307,165.87,165.86,7.0]
[1717505987909,2.231,165.85,165.83,0.17]
[1717505988103,2.231,165.85,165.83,7.0]
[1717505989198,2.2308,165.86,165.83,7.0]
[1717505991519,2.2307,165.87,165.83,7.0]
[1717505991925,2.2307,165.87,165.84,7.0]
[1717505992293,2.2308,165.86,165.84,7.0]
[1717505994923,2.2308,165.86,165.81,2.2314]
[1717505995098,2.2309,165.85,165.83,7.0]
[1717505995798,2.2309,165.85,165.82,7.0]
[1717505996620,2.2309,165.85,165.8,2.2315]
[1717505996835,9.05427658,165.81,165.8,2.2315]
[1717505997130,2.231,165.84,165.8,7.0]
[1717505997330,2.231,165.84,165.79,0.17]
[1717505997634,9.05460918,165.8,165.79,2.4016]
[1717505997837,9.05460918,165.8,165.79,9.4016]
[1717505998529,2.231,165.84,165.79,9.4016]
[1717506000953,2.231,165.84,165.79,15.7274]
[1717506001125,2.2309,165.86,165.83,7.0]
[1717506001436,2.2309,165.85,165.8,8.5573]
[1717506001615,4.4613,165.87,165.76,6.0573]
[1717506001823,18.70581242,165.86,165.79,7.0]
[1717506002036,14.24411242,165.85,165.79,7.0]
[1717506002214,2.2314,165.82,165.76,8.2893]
[1717506002542,2.2314,165.82,165.78,7.0]
[1717506006823,2.2312,165.83,165.79,7.0]
[1717506007020,2.2312,165.83,165.81,7.0]
[1717506007836,2.2311,165.84,165.82,7.0]
[1717506008340,2.2312,165.83,165.78,8.5733]
[1717506008655,2.2312,165.83,165.81,7.0]
[1717506009821,2.2312,165.83,165.78,8.5733]
[1717506010131,2.2312,165.83,165.77,0.34]
[1717506010132,2.2313,165.82,165.77,2.5719]
[1717506010336,2.2313,165.82,165.8,7.0]
[1717506011444,2.2312,165.83,165.8,7.0]
[1717506011849,8.14913831,165.87,165.77,0.34]
[1717506012066,11.0145,165.88,165.77,0.34]
[1717506012067,2.231,165.85,165.83,7.0]
[1717506012219,2.231,165.85,165.82,7.0]
[1717506012651,2.231,165.84,165.82,7.0]
[1717506012952,2.231,165.84,165.81,7.0]
[1717506014357,2.2312,165.83,165.79,2.2317]
[1717506014536,2.2311,165.84,165.81,7.0]
[1717506015054,2.2311,165.84,165.83,7.0]
[1717506015353,2.2309,165.85,165.83,7.0]
[1717506016063,2.231,165.84,165.83,7.0]
[1717506016264,11.1515,165.9,165.83,7.0]
[1717506016453,11.1515,165.9,165.84,7.0]
[1717506016776,2.2308,165.86,165.84,7.0]
[1717506016929,2.2309,165.85,165.8,2.2315]
[1717506017119,2.2309,165.85,165.82,7.0]
[1717506017934,2.2308,165.86,165.82,7.0]
[1717506018139,2.2308,165.86,165.83,7.0]
[1717506019951,2.2308,165.86,165.84,7.0]
[1717506020150,2.2309,165.85,165.84,7.0]
[1717506020536,2.2308,165.86,165.84,7.0]
[1717506020732,2.2308,165.86,165.85,7.0]
[1717506020943,2.2307,165.87,165.85,7.0]
[1717506021143,11.1523,165.89,165.81,0.34]
[1717506021144,2.2308,165.86,165.84,7.0]
[1717506024048,2.2309,165.85,165.84,7.0]
[1717506024744,2.2309,165.85,165.83,7.0]
[1717506025553,2.2309,165.85,165.82,7.0]
[1717506025849,2.231,165.84,165.82,7.0]
[1717506026349,2.2309,165.85,165.82,7.0]
[1717506026737,2.2309,165.85,165.83,7.0]
[1717506026944,2.2308,165.86,165.83,7.0]
[1717506027449,2.2308,165.86,165.84,7.0]
[1717506029856,2.2308,165.86,165.85,7.0]
[1717506032550,2.231,165.85,165.84,7.0]
[1717506032859,2.231,165.85,165.83,7.0]
[1717506033049,2.231,165.85,165.84,7.17]
[1717506033251,2.231,165.85,165.84,7.0]
[1717506033845,2.231,165.85,165.83,7.0]
[1717506035361,2.2308,165.86,165.84,7.0]
[1717506036359,2.2307,165.87,165.85,7.0]
[1717506036873,2.2307,165.86,165.85,7.0]
[1717506040743,2.2306,165.88,165.85,7.17]
[1717506041065,2.2306,165.87,165.86,7.17]
[1717506042771,2.2305,165.88,165.86,7.17]
[1717506045150,4.4603,165.91,165.87,7.0]
[1717506045577,2.2304,165.89,165.87,7.0]
[1717506045953,2.2302,165.9,165.87,7.0]
[1717506046154,2.2304,165.89,165.87,7.0]
[1717506046762,2.2304,165.89,165.88,7.0]
[1717506052660,4.4594,165.94,165.88,7.0]
[1717506053004,2.2302,165.91,165.89,7.0]
[1717506056082,2.2302,165.9,165.89,7.0]
[1717506057590,2.2302,165.9,165.89,7.17]
[1717506057895,2.2301,165.92,165.89,7.17]
[1717506058069,2.2301,165.91,165.89,7.17]
[1717506058603,2.2301,165.91,165.9,7.0]
[1717506062978,2.23,165.92,165.9,7.0]
[1717506063780,2.2301,165.91,165.9,7.0]
[1717506067002,2.2301,165.91,165.89,0.17]
[1717506067295,2.2301,165.91,165.86,2.2307]
[1717506067296,2.2304,165.89,165.85,2.2308]
[1717506067487,2.2304,165.89,165.84,2.231]
[1717506067693,2.2304,165.89,165.87,7.0]
[1717506068407,2.2303,165.9,165.87,7.0]
[1717506069007,2.2304,165.89,165.85,2.2308]
[1717506069218,4.4606,165.9,165.86,7.0]
[1717506069412,2.2307,165.87,165.83,2.2311]
[1717506069610,2.2307,165.87,165.86,7.0]
[1717506069981,2.2307,165.87,165.85,7.0]
[1717506070305,2.231,165.85,165.8,2.2315]
[1717506070509,2.231,165.85,165.83,7.0]
[1717506070683,4.461,165.88,165.84,7.0]
[1717506070684,2.2308,165.86,165.84,7.0]
[1717506070876,2.2308,165.86,165.85,7.0]
[1717506071103,2.2308,165.86,165.82,2.2313]
[1717506071404,2.2308,165.86,165.84,7.0]
[1717506071578,2.2308,165.86,165.81,2.2314]
[1717506071813,2.2308,165.86,165.83,7.0]
[1717506072534,2.2309,165.85,165.81,2.2314]
[1717506072712,2.2309,165.85,165.82,7.0]
[1717506072913,2.2309,165.85,165.83,7.0]
[1717506074824,2.2309,165.85,165.84,7.0]
[1717506075740,2.2309,165.85,165.83,7.0]
[1717506077337,2.2309,165.85,165.81,2.2314]
[1717506077542,2.2309,165.85,165.83,7.0]
[1717506077749,2.2309,165.85,165.84,7.0]
[1717506080528,2.2309,165.85,165.81,2.2314]
[1717506080726,2.2312,165.83,165.79,2.2317]
[1717506081051,2.2312,165.83,165.82,7.0]
[1717506081219,2.2311,165.84,165.82,7.0]
[1717506081547,2.2311,165.84,165.8,6.4751]
[1717506081744,2.2311,165.84,165.83,7.0]
[1717506082047,2.2312,165.83,165.82,7.0]
[1717506083132,2.231,165.84,165.82,7.0]
[1717506083545,2.231,165.84,165.83,7.0]
[1717506083841,2.231,165.84,165.8,2.2316]
[1717506084056,2.231,165.84,165.83,7.0]
[1717506084222,2.2312,165.83,165.82,7.0]
[1717506085034,2.2312,165.83,165.79,0.17]
[1717506085244,2.2313,165.82,165.8,7.0]
[1717506085458,2.2313,165.82,165.81,7.0]
[1717506086047,2.2312,165.83,165.81,7.0]
[1717506087748,2.2311,165.84,165.79,2.5717]
[1717506087923,2.2311,165.84,165.82,7.0]
[1717506088128,2.2311,165.84,165.83,7.0]
[1717506089255,2.2311,165.84,165.82,7.0]
[1717506089747,2.2311,165.84,165.83,7.0]
[1717506090588,2.2309,165.85,165.83,7.0]
[1717506090730,2.231,165.85,165.83,7.0]
[1717506090933,2.231,165.85,165.84,7.0]
[1717506091644,2.2308,165.86,165.84,7.0]
[1717506091853,2.2309,165.85,165.84,7.0]
[1717506094446,16.61743394,165.9,165.84,7.0]
[1717506094632,2.2306,165.88,165.87,7.0]
[1717506095232,2.2306,165.88,165.84,6.6448]
[1717506095447,2.2306,165.88,165.87,7.0]
[1717506095859,2.2306,165.87,165.86,7.0]
[1717506096154,2.2306,165.87,165.83,0.34]
[1717506096333,7.69603394,165.94,165.83,0.34]
[1717506096334,2.231,165.85,165.83,0.34]
[1717506096755,2.231,165.85,165.83,7.0]
[1717506098167,2.2308,165.86,165.84,7.0]
[1717506098371,2.2307,165.87,165.84,7.0]
[1717506098971,2.2307,165.87,165.85,7.0]
[1717506099164,2.2307,165.87,165.86,7.0]
[1717506100540,20.0689,165.93,165.86,13.6328]
[1717506100870,4.4598,165.93,165.89,7.0]
[1717506101245,2.2302,165.9,165.89,7.0]
[1717506103961,2.2302,165.9,165.88,7.0]
[1717506104883,2.2302,165.9,165.89,7.0]
[1717506106854,2.2302,165.9,165.89,7.0]
[1717506107063,2.2302,165.9,165.88,7.0]
[1717506107370,2.2303,165.89,165.88,7.0]
[1717506107572,2.2303,165.89,165.88,7.34]
[1717506107865,2.2303,165.89,165.88,7.17]
[1717506109653,2.2303,165.9,165.88,7.17]
[1717506112182,2.2303,165.9,165.89,7.0]
[1717506114099,4.4598,165.93,165.89,7.0]
[1717506114261,2.2302,165.91,165.89,7.0]
[1717506117390,2.2302,165.9,165.88,0.17]
[1717506117560,2.2302,165.9,165.89,7.0]
[1717506120593,2.2302,165.9,165.87,0.34]
[1717506121373,2.2304,165.89,165.87,7.34]
[1717506122064,13.6901,165.92,165.81,6.6338]
[1717506122259,2.2306,165.87,165.85,7.0]
[1717506122455,2.2305,165.88,165.84,2.231]
[1717506122684,2.2305,165.88,165.85,7.0]
[1717506123969,2.2304,165.89,165.85,9.2308]
[1717506124273,2.2305,165.88,165.85,7.0]
[1717506124994,2.2304,165.89,165.85,9.2308]
[1717506125686,2.2303,165.9,165.87,7.0]
[1717506125868,2.2303,165.9,165.88,7.0]
[1717506126775,2.2301,165.91,165.88,7.0]
[1717506127283,18.72754506,165.94,165.88,7.0]
[1717506127284,2.2302,165.9,165.88,7.0]
[1717506127674,2.2302,165.91,165.88,7.0]
[1717506128390,18.1487,165.94,165.86,2.4007]
[1717506128391,2.2302,165.9,165.86,2.4007]
[1717506128595,2.2301,165.91,165.88,7.0]
[1717506128765,2.2301,165.91,165.89,7.0]
[1717506129891,2.2301,165.91,165.87,2.2306]
[1717506130193,2.2301,165.91,165.88,0.34]
[1717506131170,2.2301,165.91,165.88,6.8478]
[1717506131482,2.2301,165.91,165.88,0.34]
[1717506133270,2.2302,165.9,165.88,0.34]
[1717506133470,2.2302,165.9,165.87,7.17]
[1717506134065,2.2301,165.91,165.87,9.4006]
[1717506134296,2.2301,165.91,165.87,2.4006]
[1717506134596,2.2302,165.9,165.87,7.17]
[1717506135572,2.2302,165.9,165.87,0.17]
[1717506135767,2.2302,165.9,165.87,7.17]
[1717506136487,7.0,165.91,165.84,8.2729]
[1717506136697,2.2304,165.89,165.85,7.34]
[1717506137192,2.2304,165.89,165.85,9.5708]
[1717506137894,2.2303,165.9,165.86,2.2307]
[1717506138092,2.2303,165.9,165.86,9.2307]
[1717506138900,2.2303,165.89,165.87,7.0]
[1717506139490,2.2302,165.9,165.87,7.0]
[1717506139784,2.2302,165.9,165.86,9.2307]
[1717506140178,2.2302,165.9,165.86,2.2307]
[1717506140397,2.2302,165.9,165.86,9.2307]
[1717506140585,2.2302,165.9,165.86,2.2307]
[1717506140784,2.2302,165.9,165.86,7.0]
[1717506141997,2.2304,165.89,165.85,2.5708]
[1717506142496,2.2303,165.9,165.86,9.2307]
[1717506142880,2.2303,165.9,165.87,7.0]
[1717506143696,2.2304,165.89,165.87,7.0]
[1717506144806,2.2304,165.89,165.86,7.0]
[1717506146090,2.2303,165.9,165.86,9.2307]
[1717506146417,2.2301,165.91,165.87,9.4006]
[1717506146707,2.2301,165.91,165.87,9.2306]
[1717506146905,2.2302,165.9,165.87,9.2306]
[1717506147093,2.2302,165.9,165.87,7.0]
[1717506147805,2.2304,165.89,165.87,7.0]
[1717506148006,2.2304,165.89,165.85,8.6544]
[1717506148194,2.2304,165.89,165.87,7.0]
[1717506148396,2.2304,165.89,165.86,7.0]
[1717506148710,2.2304,165.89,165.85,8.6544]
[1717506148912,2.2304,165.89,165.86,7.0]
[1717506149105,2.2304,165.89,165.85,9.5708]
[1717506149611,2.2304,165.89,165.85,2.5708]
[1717506149829,2.2304,165.89,165.86,7.0]
[1717506150117,2.2304,165.89,165.85,2.5708]
[1717506150286,2.2304,165.89,165.86,7.0]
[1717506150786,2.2303,165.9,165.86,9.2307]
[1717506152689,2.2303,165.9,165.86,2.2307]
[1717506154114,2.2303,165.9,165.86,9.2307]
[1717506157225,2.2303,165.9,165.87,7.17]
[1717506157424,15.9197,165.93,165.87,7.17]
[1717506157425,2.2301,165.91,165.87,7.17]
[1717506157598,2.2301,165.91,165.88,7.0]
[1717506157799,2.23,165.92,165.88,9.2305]
[1717506158686,2.2301,165.91,165.88,7.0]
[1717506161213,2.2301,165.91,165.87,9.4006]
[1717506162128,2.2303,165.9,165.87,0.17]
[1717506162300,2.2303,165.9,165.87,7.34]
[1717506162500,2.2301,165.91,165.87,7.34]
[1717506162703,2.2301,165.91,165.87,9.5706]
[1717506167807,2.2301,165.91,165.88,7.0]
[1717506168112,2.2301,165.91,165.89,0.17]
[1717506171725,2.2301,165.91,165.88,7.34]
[1717506174936,27.0677,165.94,165.88,7.34]
[1717506175408,2.2302,165.91,165.88,7.34]
[1717506178635,2.2302,165.9,165.88,0.34]
[1717506178942,2.2302,165.9,165.87,0.34]
[1717506183443,2.2301,165.91,165.87,2.5706]
[1717506183747,4.4597,165.93,165.87,9.0468]
[1717506184246,2.2301,165.91,165.87,9.0468]
[1717506184422,2.2301,165.91,165.88,2.2305]
[1717506184620,4.4592,165.95,165.89,0.34]
[1717506184823,2.23,165.92,165.89,0.34]
[1717506185545,2.23,165.92,165.88,2.5705]
[1717506186519,2.2299,165.93,165.88,2.5705]
[1717506187026,2.23,165.92,165.88,2.5705]
[1717506189718,2.2298,165.93,165.89,2.2303]
[1717506189921,2.2298,165.93,165.9,0.17]
[1717506190553,2.23,165.92,165.89,0.17]
[1717506193248,2.2299,165.93,165.89,0.17]
[1717506194346,2.2299,165.93,165.89,2.4003]
[1717506195152,2.23,165.92,165.89,0.17]
[1717506196434,2.23,165.92,165.89,7.17]
[1717506196934,2.2299,165.93,165.89,9.4003]
[1717506197542,2.2299,165.93,165.9,7.0]
[1717506200554,2.2299,165.93,165.89,9.4003]
[1717506202857,2.2299,165.93,165.9,7.0]
[1717506204360,2.2299,165.93,165.89,2.4003]
[1717506204540,2.2299,165.93,165.9,7.0]
[1717506205251,2.2299,165.93,165.89,2.4003]
[1717506206743,2.2299,165.93,165.89,9.4003]
[1717506208765,2.2299,165.93,165.89,2.4003]
[1717506208974,2.2299,165.93,165.9,7.0]
[1717506209152,2.2299,165.92,165.9,7.0]
[1717506209553,2.2299,165.93,165.9,7.0]
[1717506209954,2.2299,165.93,165.89,9.4003]
[1717506210170,2.23,165.92,165.89,7.17]
[1717506212361,2.2299,165.93,165.89,9.4003]
[1717506213974,2.23,165.92,165.89,0.17]
[1717506214853,2.23,165.92,165.89,7.17]
[1717506215262,11.4592,165.95,165.89,0.17]
[1717506215472,2.2299,165.92,165.89,7.0]
[1717506216771,2.2299,165.92,165.84,34.6931]
[1717506216772,7.0,165.93,165.83,42.8462]
[1717506216979,2.2303,165.9,165.86,9.2307]
[1717506217566,2.2301,165.91,165.87,2.2306]
[1717506217756,2.2299,165.93,165.89,2.2303]
[1717506217957,2.2299,165.93,165.9,7.0]
[1717506218871,2.23,165.92,165.89,0.17]
[1717506219063,2.23,165.92,165.9,0.17]
[1717506220163,2.23,165.92,165.89,0.34]
[1717506220559,2.23,165.92,165.89,0.17]
[1717506222786,2.23,165.92,165.89,0.34]
[1717506222989,2.23,165.92,165.89,7.34]
[1717506223174,2.23,165.92,165.89,0.34]
[1717506224669,2.2301,165.91,165.89,0.17]
[1717506225086,2.2301,165.91,165.84,76.9805]
[1717506225087,7.0,165.94,165.88,0.34]
[1717506225297,7.26804506,165.99,165.85,2.2309]
[1717506225298,2.2303,165.89,165.85,2.2309]
[1717506225613,2.2303,165.89,165.86,7.0]
[1717506226396,2.2303,165.89,165.85,2.2309]
[1717506226599,2.2303,165.89,165.86,7.0]
[1717506227373,2.2303,165.9,165.86,9.2307]
[1717506228488,2.2303,165.9,165.87,7.0]
[1717506229790,2.2301,165.91,165.87,9.2306]
[1717506229987,2.2301,165.91,165.85,0.17]
[1717506229988,2.23,165.92,165.89,7.0]
[1717506230187,2.23,165.92,165.9,7.0]
[1717506230388,2.2299,165.93,165.9,7.0]
[1717506230874,2.23,165.92,165.88,2.5704]
[1717506231080,2.2301,165.91,165.89,7.0]
[1717506231904,2.23,165.92,165.89,7.0]
[1717506236682,2.2301,165.91,165.89,7.0]
[1717506237703,2.23,165.92,165.89,7.0]
[1717506237896,2.23,165.92,165.9,7.0]
[1717506238286,2.3772328,165.92,165.9,7.0]
[1717506240684,2.3772328,165.92,165.91,7.0]
[1717506242983,2.3772328,165.92,165.9,7.0]
[1717506244106,0.1472328,165.92,165.9,7.0]
[1717506244294,0.1472328,165.92,165.91,7.0]
[1717506246118,0.1472328,165.92,165.91,13.4444]
[1717506246612,0.1472328,165.92,165.91,7.17]
[1717506247686,0.1472328,165.92,165.91,9.4001]
[1717506247907,0.1472328,165.92,165.91,9.5701]
[1717506248491,0.1472328,165.92,165.91,7.34]
[1717506249690,0.1472328,165.92,165.91,0.34]
[1717506249892,0.1472328,165.92,165.91,7.0]
[1717506250104,0.1472328,165.92,165.91,7.34]
[1717506252720,0.1472328,165.92,165.91,9.5701]
[1717506253504,0.1472328,165.92,165.91,16.0648]
[1717506259294,0.1472328,165.92,165.91,9.2301]
[1717506260718,0.1472328,165.92,165.91,9.5701]
[1717506260921,0.1472328,165.92,165.91,23.1593]
[1717506261220,0.1472328,165.92,165.91,80.3781]
[1717506261422,15.6001,166.03,165.96,2.2294]
[1717506261423,2.2289,166.0,165.96,2.2294]
[1717506261620,2.229,165.99,165.98,7.0]
[1717506261818,2.2289,166.0,165.98,7.0]
[1717506262023,2.2289,166.0,165.99,7.0]
[1717506264509,2.2288,166.01,165.99,7.0]
[1717506264822,2.2288,166.01,166.0,7.0]
[1717506266097,6.4813,166.03,165.91,27.6279]
[1717506266311,2.2292,165.98,165.91,27.6279]
[1717506266519,2.2292,165.98,165.96,7.0]
[1717506266714,2.2292,165.98,165.97,7.0]
[1717506267108,2.229,165.99,165.97,7.0]
[1717506267339,2.229,165.99,165.98,7.0]
[1717506268525,2.229,165.99,165.95,2.2295]
[1717506268698,2.229,165.99,165.98,7.0]
[1717506269031,2.2289,166.0,165.98,7.0]
[1717506269216,2.2289,166.0,165.99,7.0]
[1717506272132,2.2288,166.01,165.99,7.0]
[1717506272427,2.2288,166.01,165.99,7.17]
[1717506273627,4.4582,165.99,165.92,2.2299]
[1717506273926,2.2293,165.97,165.95,7.0]
[1717506274306,2.2293,165.97,165.96,7.0]
[1717506275245,2.2295,165.96,165.91,2.2299]
[1717506275430,2.2295,165.95,165.94,7.0]
[1717506275734,2.2295,165.95,165.89,2.2303]
[1717506275735,2.2295,165.95,165.92,7.0]
[1717506276306,2.2295,165.96,165.94,7.0]
[1717506276716,2.2293,165.97,165.95,7.0]
[1717506279640,2.2293,165.97,165.92,2.2299]
[1717506279939,2.2293,165.97,165.95,7.0]
[1717506280639,2.2294,165.96,165.93,0.34]
[1717506280834,2.2294,165.96,165.95,7.0]
[1717506281733,2.2294,165.96,165.93,0.34]
[1717506281941,2.2295,165.96,165.91,2.23]
[1717506282152,2.2295,165.96,165.94,7.0]
[1717506283942,2.2295,165.96,165.95,7.0]
[1717506284723,2.2293,165.97,165.95,7.0]
[1717506285532,2.2294,165.96,165.91,2.23]
[1717506285725,2.2294,165.96,165.95,7.0]
[1717506287119,2.2294,165.96,165.92,0.34]
[1717506287325,2.2294,165.96,165.93,7.0]
[1717506287525,11.4582,165.99,165.93,7.0]
[1717506287526,2.2295,165.95,165.93,7.0]
[1717506287942,2.2295,165.95,165.94,7.0]
[1717506288124,11.1454,165.99,165.94,7.0]
[1717506288125,2.2295,165.96,165.94,7.0]
[1717506288328,2.2295,165.96,165.92,0.17]
[1717506288535,2.2295,165.96,165.94,7.0]
[1717506289051,2.2295,165.96,165.93,7.0]
[1717506290563,2.2295,165.96,165.94,7.0]
[1717506290735,2.2293,165.97,165.94,7.0]
[1717506290934,2.2293,165.97,165.95,7.0]
[1717506293041,2.2293,165.97,165.96,7.0]
[1717506293333,8.9161,166.0,165.92,2.3999]
[1717506293334,2.2294,165.96,165.92,2.3999]
[1717506293523,2.2293,165.97,165.95,7.0]
[1717506294531,2.2293,165.97,165.96,7.0]
[1717506295450,2.2299,165.93,165.91,7.0]
[1717506295655,2.2297,165.94,165.91,7.0]
[1717506300260,2.2296,165.95,165.92,7.0]
[1717506300968,4.4587,165.97,165.9,0.34]
[1717506300969,2.2297,165.94,165.9,0.34]
[1717506301147,2.2297,165.94,165.91,7.17]
[1717506301458,2.2297,165.94,165.91,0.17]
[1717506301663,2.2297,165.94,165.9,0.34]
[1717506301864,2.2296,165.95,165.91,7.0]
[1717506303165,2.2296,165.95,165.9,2.5702]
[1717506303358,2.2296,165.95,165.91,7.0]
[1717506304268,2.2296,165.95,165.9,2.5702]
[1717506304577,2.2296,165.95,165.91,7.0]
[1717506304863,2.2297,165.94,165.91,7.0]
[1717506305382,2.2295,165.95,165.91,9.2301]
[1717506305742,2.2295,165.95,165.93,7.0]
[1717506310159,2.2295,165.95,165.9,2.5702]
[1717506310351,2.2297,165.94,165.92,7.0]
[1717506311042,2.2297,165.94,165.91,7.0]
[1717506311951,2.2297,165.94,165.9,2.5702]
[1717506312155,2.2297,165.94,165.9,0.34]
[1717506312372,2.2297,165.94,165.9,7.34]
[1717506313165,15.1207,165.94,165.82,8.9249]
[1717506313353,2.2303,165.9,165.86,7.0]
[1717506313862,2.2301,165.91,165.87,7.0]
[1717506314066,2.23,165.92,165.87,7.0]
[1717506314761,2.23,165.92,165.87,9.2306]
[1717506315267,2.23,165.92,165.88,7.0]
[1717506316049,2.23,165.92,165.89,7.0]
[1717506316754,2.2299,165.93,165.9,7.0]
[1717506317891,2.2299,165.93,165.88,2.2305]
[1717506318178,2.2299,165.93,165.9,7.0]
[1717506318876,2.2299,165.93,165.91,7.0]
[1717506319851,2.2296,165.95,165.92,7.0]
[1717506320071,2.2296,165.95,165.9,2.2302]
[1717506320379,2.2296,165.95,165.92,7.0]
[1717506320974,2.2296,165.95,165.93,7.0]
[1717506321178,2.2297,165.94,165.91,0.17]
[1717506321347,2.2297,165.94,165.9,0.34]
[1717506321551,2.2297,165.94,165.92,7.0]
[1717506324784,2.2296,165.95,165.92,7.0]
[1717506325078,4.4581,165.99,165.94,7.0]
[1717506325252,4.4576,166.01,165.95,7.0]
[1717506325453,2.229,165.99,165.96,7.0]
[1717506325686,2.229,165.99,165.95,7.0]
[1717506325986,2.2291,165.98,165.95,7.0]
[1717506326566,2.229,165.99,165.96,7.0]
[1717506326771,16.92370232,166.02,165.96,7.0]
[1717506327182,9.92370232,166.02,165.96,7.0]
[1717506327479,2.2293,165.97,165.94,0.17]
[1717506327788,2.2293,165.97,165.93,7.0]
[1717506328362,2.2292,165.98,165.93,9.2298]
[1717506328860,2.2292,165.98,165.94,7.0]
[1717506329483,2.2292,165.98,165.94,9.2297]
[1717506330264,2.2292,165.98,165.94,7.0]
[1717506330572,2.229,165.99,165.95,7.0]
[1717506330792,2.229,165.99,165.96,7.0]
[1717506331382,2.229,165.99,165.95,7.0]
[1717506335993,7.0,166.01,165.95,7.0]
[1717506336288,7.0,165.96,165.9,7.0]
[1717506336688,2.2297,165.94,165.9,7.0]
[1717506336996,9.2296,165.95,165.9,2.2302]
[1717506337196,7.0,165.95,165.9,2.2302]
[1717506337486,2.2295,165.96,165.91,2.4001]
[1717506337695,9.2295,165.96,165.91,2.4001]
[1717506337883,2.2296,165.95,165.9,2.2302]
[1717506338088,2.2296,165.95,165.89,0.17]
[1717506338089,2.2298,165.93,165.88,2.2304]
[1717506338309,2.2298,165.93,165.89,0.17]
[1717506338602,2.23,165.92,165.87,2.2306]
[1717506338773,2.23,165.92,165.87,9.2306]
[1717506339096,2.2296,165.95,165.89,2.2302]
[1717506339394,9.2299,165.93,165.87,2.2305]
[1717506339800,2.23,165.92,165.88,0.17]
[1717506340095,9.23,165.92,165.87,2.2305]
[1717506340493,9.23,165.92,165.86,9.2307]
[1717506341104,9.23,165.92,165.86,2.2307]
[1717506341398,7.0,165.91,165.86,2.2307]
[1717506341608,7.0,165.91,165.87,0.17]
[1717506341901,13.1946,165.95,165.8,47.2056]
[1717506342092,17.6538,165.95,165.86,7.0]
[1717506342288,17.6538,165.95,165.83,2.2311]
[1717506342289,2.2304,165.89,165.83,2.2311]
[1717506342496,2.2304,165.89,165.84,7.0]
[1717506342882,7.0,165.89,165.83,9.2311]